[Event "53rd Mar Del Plata Open 2024"]
[Site "Mar Del Plata"]
[Date "2024.03.28"]
[Round "6.7"]
[White "Petti, Luca Giovanni"]
[Black "Marrujo Pardo, Mauricio Emmanuel"]
[Result "1-0"]
[ECO "C55"]
[WhiteElo "2057"]
[BlackElo "2337"]
[Annotator "RC"]
[PlyCount "99"]
[EventDate "2024.03.23"]
[EventType "swiss"]
[EventCountry "ARG"]
[SourceTitle "playchess.com"]
[Source "ChessBase"]
[SourceQuality "1"]
[TimeControl "5400+30"]

1. e4 {[%emt 0:01:39]} e5 {[%emt 0:00:05]} 2. Nf3 {[%emt 0:00:27]} Nc6 {[%emt 0:00:35]} 3. Bc4 {[%emt 0:00:07]} Nf6 {[%emt 0:00:06]} 4. d3 {[%emt 0:00:06]} h6 {[%emt 0:00:25]} 5. c3 {[%emt 0:01:36]} d6 {[%emt 0:00:08]} 6. O-O {[%emt 0:02:32]} g5 {[%emt 0:00:08]} 7. Re1 {[%emt 0:13:55]} Bg7 {[%emt 0:00:07]} 8. d4 {[%emt 0:08:21]} Bd7 {[%emt 0:23:46]} 9. dxe5 {[%emt 0:04:00]} dxe5 {[%emt 0:00:30]} 10. Nbd2 {[%emt 0:11:50]} O-O {[%emt 0:24:08]} 11. Nf1 {[%emt 0:04:42]} Bg4 {[%emt 0:09:16]} 12. Qe2 {[%emt 0:02:51]} Ne8 {[%emt 0:01:04]} 13. Ne3 {[%emt 0:03:47]} Bh5 {[%emt 0:02:30]} 14. Nf5 {[%emt 0:02:25]} Nd6 {[%emt 0:04:14]} 15. Rd1 {[%emt 0:01:48]} Qf6 {[%emt 0:00:23]} 16. Nxd6 {[%emt 0:01:55]} cxd6 {[%emt 0:01:23]} 17. Bd5 {[%emt 0:00:36]} Rfc8 {[%emt 0:06:04]} 18. a4 {[%emt 0:03:10]} Rc7 {[%emt 0:10:00]} 19. h3 {[%emt 0:00:46]} Nd8 {[%emt 0:10:08]} 20. g4 {[%emt 0:02:26]} Bg6 {[%emt 0:00:04]} 21. a5 {[%emt 0:00:18]} a6 {[%emt 0:01:18]} 22. Be3 {[%emt 0:01:20]} Ne6 {[%emt 0:00:20]} 23. Ra4 {[%emt 0:02:39]} Nf4 {[%emt 0:02:27]} 24. Bxf4 {[%emt 0:00:02]} gxf4 {[%emt 0:00:14]} 25. Rb4 {[%emt 0:00:41]} Rb8 {[%emt 0:00:19]} 26. Rb6 {[%emt 0:00:40]} Bf8 {[%emt 0:00:17]} 27. Qc2 {[%emt 0:00:56]} Kh8 {[%emt 0:03:20]} 28. Qb3 {[%emt 0:00:37]} h5 {[%emt 0:00:38]} 29. g5 {[%emt 0:00:07]} Qd8 {[%emt 0:00:20]} 30. Bxb7 {[%emt 0:04:36]} Rbxb7 {[%emt 0:00:19]} 31. Rxb7 {[%emt 0:00:07]} Bxe4 {[%emt 0:00:02]} 32. Rxc7 {[%emt 0:02:16]} Bxf3 {[%emt 0:00:34]} 33. Rxf7 {[%emt 0:00:34]} Qxg5+ {[%emt 0:00:51]} 34. Kf1 {[%emt 0:00:01]} Qg2+ {[%emt 0:00:48]} 35. Ke1 {[%emt 0:00:01]} Qg1+ {[%emt 0:00:01]} 36. Kd2 {[%emt 0:00:09]} Qxf2+ {[%emt 0:00:49]} 37. Kc1 {[%emt 0:00:01]} Qe3+ {[%emt 0:00:41]} 38. Kb1 {[%emt 0:00:01]} Bg7 {[%emt 0:00:36]} 39. Rxd6 {[%emt 0:01:04]} Be4+ {[%emt 0:00:25]} 40. Ka2 {[%emt 0:01:38]} Qc5 {[%emt 0:00:12]} 41. Rh6+ {[%emt 0:08:01]} Bxh6 {[%emt 0:00:21]} 42. Qb8+ {[%emt 0:00:04]} Bf8 {[%emt 0:00:21]} 43. Rxf8+ {[%emt 0:00:10]} Kg7 {[%emt 0:01:11]} 44. Rg8+ {[%emt 0:00:12]} Kf6 {[%emt 0:00:30]} 45. Qd8+ {[%emt 0:00:20]} Ke6 {[%emt 0:00:23]} 46. Re8+ {[%emt 0:00:56]} Kf7 {[%emt 0:00:21]} 47. Qd7+ {[%emt 0:00:09]} Kf6 {[%emt 0:00:38]} 48. Re6+ {[%emt 0:00:04]} Kg5 {[%emt 0:00:05]} 49. Qd8+ {[%emt 0:00:04]} Kf5 {[%emt 0:00:13]} 50. Qf6# {[%emt 0:00:05]} 1-0

[Event "53rd Mar Del Plata Open 2024"]
[Site "Mar Del Plata"]
[Date "2024.03.28"]
[Round "6.8"]
[White "Tovillas, Daniel R."]
[Black "Acosta, Pablo Ismael"]
[Result "0-1"]
[ECO "A08"]
[WhiteElo "2083"]
[BlackElo "2463"]
[Annotator "TA"]
[PlyCount "82"]
[EventDate "2024.03.23"]
[EventType "swiss"]
[EventCountry "ARG"]
[SourceTitle "playchess.com"]
[Source "ChessBase"]
[SourceQuality "1"]
[TimeControl "5400+30"]

{[%evp 9,82,-17,-2,-36,-36,-35,-32,-44,-40,-70,-52,-53,-40,-49,-40,-46,-51,-47,-35,-21,-33,-35,-43,-39,-20,-56,-31,-23,0,-81,-83,-80,-97,-97,-45,-84,-79,-79,-76,-49,-43,-104,-29,-48,-45,-35,-30,-47,-62,-64,-62,-62,-26,-17,-13,-63,-64,-87,-47,-47,-47,-39,0,-122,-29,-934,-902,-956,-552,-3115,-2542,-29996,-29996,-29996,-29997]} 1. b3 {[%emt 1:31:00]} Nf6 {[%emt 0:02:49]} 2. Bb2 {[%emt 0:00:00]} c5 {[%emt 0:03:14]} 3. g3 {[%emt 0:00:00]} d5 {[%emt 0:03:38]} 4. Bg2 {[%emt 0:00:00]} Nc6 {[%emt 0:00:11]} 5. Nf3 {[%emt 0:00:00]} Bg4 {[%emt 0:01:53]} 6. d4 {[%emt 0:00:00]} Bxf3 {[%emt 0:05:18]} 7. Bxf3 {[%emt 0:00:00]} cxd4 {[%emt 0:00:16]} 8. Bxd4 {[%emt 0:00:00] Black is slightly better.} e5 {[%emt 0:00:06]} 9. Be3 {[%emt 0:00:00]} Be7 {[%emt 0:09:17]} 10. O-O {[%emt 0:00:00]} O-O {[%emt 0:04:52]} 11. Bc1 {[%emt 0:00:00]} Bc5 {[%emt 0:02:12]} 12. Bg2 {[%emt 0:00:00]} e4 {[%emt 0:05:11]} 13. c3 {[%emt 0:00:00]} Ng4 {[%emt 0:02:10][%cal Bf6g4,Bg4e5,Be5g6][%mdl 32]} 14. h3 {[%emt 0:00:00]} Nge5 {[%emt 0:00:37]} 15. Na3 {[%emt 0:00:00]} f5 {[%emt 0:02:08]} 16. Nc2 {[%emt 0:00:25]} Ng6 {[%emt 0:02:23]} 17. Nd4 {[%emt 0:01:00]} Bxd4 {[%emt 0:01:51]} 18. cxd4 {[%emt 0:00:04]} f4 {[%emt 0:00:08]} 19. gxf4 {[%emt 0:02:34]} (19. Bxf4 $1 $11 Nxf4 20. gxf4) 19... Nh4 $17 {[%emt 0:04:37]} (19... Nxf4 20. Bxf4 Rxf4 21. e3 $11) 20. Kh1 {[%emt 0:01:47]} Nxg2 {[%emt 0:07:20]} 21. Kxg2 {[%emt 0:00:03]} Qh4 {[%emt 0:00:10]} (21... Ne7 $17 22. Kh2 Qd7) 22. Rg1 {[%emt 0:02:31]} Rf6 {[%emt 0:01:16][%mdl 1024] [#] Hoping for ...Rg6+. Black has strong compensation. Black has more active pieces.} 23. Be3 {[%emt 0:00:23]} Rh6 {[%emt 0:02:47]} 24. Rh1 {[%emt 0:00:08]} Ne7 {[%emt 0:00:39]} (24... Rg6+ 25. Kh2 Rh6 26. Kg2 $17) 25. b4 {[%emt 0:00:35] White is weak on the light squares} (25. Rc1 $15) 25... Rc8 {[%emt 0:03:43]} (25... Rf8 $17 26. Rh2 Ng6 (26... Rg6+ 27. Kh1 $17)) 26. Rc1 $1 $11 {[%emt 0:00:24]} Rxc1 {[%emt 0:01:20]} 27. Qxc1 {[%emt 0:00:21]} Rc6 {[%emt 0:00:05]} 28. Qd1 {[%emt 0:00:30]} Qh5 {[%emt 0:00:55]} 29. b5 {[%emt 0:00:29]} Rc4 {[%emt 0:02:34]} (29... Rg6+ $6 30. Kf1 $14) 30. Kh2 {[%emt 0:00:20]} Nf5 {[%emt 0:00:34]} 31. Qd2 {[%emt 0:00:49]} Qe8 {[%emt 0:02:41]} (31... h6 {looks sharper.} 32. Rc1 Nh4 33. Kg3 Ra4) 32. Rb1 {[%emt 0:01:24]} ({White should play} 32. Qa5 $1 $11) 32... b6 $36 {[%emt 0:00:05][%mdl 2048] Black has some pressure.} 33. Rb4 {[%emt 0:00:18]} Rc7 {[%emt 0:04:46]} 34. a4 {[%emt 0:00:13]} Qc8 {[%emt 0:00:54] White must now prevent ...Rc2.} 35. Qa2 {[%emt 0:00:38]} Rc4 {[%emt 0:00:37]} 36. Qb1 {[%emt 0:01:15] [#]} (36. Bd2 $11 {keeps the balance.}) 36... h6 {[%emt 0:00:59]} ({Better is} 36... Rxb4 $1 $17 37. Qxb4 Qc4) 37. Kg2 $2 {[%emt 0:01:06][%mdl 8192] This costs White the game.} (37. Rxc4 $11 Qxc4 38. Qg1) 37... Rc3 $19 {[%emt 0:00:51]} 38. Qa2 {[%emt 0:00:15]} Qe6 {[%emt 0:00:59]} 39. Kh2 {[%emt 0:00:53]} Nxe3 {[%emt 0:00:17]} 40. Rb3 {[%emt 0:00:29]} Nf1+ {[%emt 0:00:53]} 41. Kg1 {[%emt 0:00:13]} Qxh3 {[%emt 0:23:44] Weighted Error Value: White=0.61/Black=0.23 (precise) .  Loses game:     	White=1     	---        Mistake:       	White=4     	Black=3      Inaccurate:     	White=4     	Black=3      OK:         	White=10    	Black=14     Best:        	---       	Black=1      Strong:       	White=1     	---} ({Not} 41... Rxh3 42. Rxh3 Qg4+ (42... Qxh3 43. Qxd5+ Kf8 44. Qd6+ Kf7 45. Qd5+ Kf6 46. Qc6+ Kf7 47. Qd5+ Kf6 48. Qc6+ Kf7 49. Qd5+ $11) 43. Kxf1 $11) 0-1

[Event "53rd Mar Del Plata Open 2024"]
[Site "Mar Del Plata"]
[Date "2024.03.28"]
[Round "6.9"]
[White "Schnaider, Ilan"]
[Black "Spata, German"]
[Result "1/2-1/2"]
[ECO "E04"]
[WhiteElo "2314"]
[BlackElo "2421"]
[Annotator "RC"]
[PlyCount "68"]
[EventDate "2024.03.23"]
[EventType "swiss"]
[EventCountry "ARG"]
[SourceTitle "playchess.com"]
[Source "ChessBase"]
[SourceQuality "1"]
[TimeControl "5400+30"]

1. d4 {[%emt 0:00:07]} Nf6 {[%emt 0:00:41]} 2. Nf3 {[%emt 0:00:11]} e6 {[%emt 0:00:07]} 3. c4 {[%emt 0:00:24]} d5 {[%emt 0:00:02]} 4. g3 {[%emt 0:00:08]} dxc4 {[%emt 0:00:17]} 5. Bg2 {[%emt 0:00:43]} c5 {[%emt 0:00:20]} 6. O-O {[%emt 0:02:46]} Nc6 {[%emt 0:00:15]} 7. Ne5 {[%emt 0:00:51]} Nxe5 {[%emt 0:08:49]} 8. dxe5 {[%emt 0:00:15]} Nd5 {[%emt 0:01:53]} 9. Na3 {[%emt 0:05:48]} b6 {[%emt 0:14:41]} 10. Nxc4 {[%emt 0:05:03]} Bb7 {[%emt 0:02:03]} 11. Qb3 {[%emt 0:03:56]} Be7 {[%emt 0:02:01]} 12. Rd1 {[%emt 0:04:31]} Qc7 {[%emt 0:10:35]} 13. a3 {[%emt 0:03:21]} Qc6 {[%emt 0:11:02]} 14. e4 {[%emt 0:13:02]} Nc7 {[%emt 0:00:20]} 15. Nd6+ {[%emt 0:25:34]} Bxd6 {[%emt 0:01:31]} 16. Rxd6 {[%emt 0:01:24]} Qb5 {[%emt 0:00:01]} 17. Qd1 {[%emt 0:02:53]} O-O {[%emt 0:05:20]} 18. Bf1 {[%emt 0:04:59]} Qe8 {[%emt 0:00:50]} 19. Qg4 {[%emt 0:00:31]} Kh8 {[%emt 0:04:42]} 20. Bg5 {[%emt 0:01:24]} Nb5 {[%emt 0:00:49]} 21. Rd2 {[%emt 0:03:13]} Nd4 {[%emt 0:00:07]} 22. Rad1 {[%emt 0:00:43]} Qc6 {[%emt 0:01:16]} 23. Bg2 {[%emt 0:01:01]} Qc7 {[%emt 0:00:26]} 24. Be3 {[%emt 0:01:39]} Rad8 {[%emt 0:02:21]} 25. Qh5 {[%emt 0:03:13]} Kg8 {[%emt 0:01:51]} 26. h3 {[%emt 0:01:41]} Nb5 {[%emt 0:04:19]} 27. a4 {[%emt 0:01:27]} Rxd2 {[%emt 0:01:13]} 28. Rxd2 {[%emt 0:00:04]} Nd4 {[%emt 0:00:10]} 29. Bxd4 {[%emt 0:05:15]} cxd4 {[%emt 0:00:07]} 30. Rxd4 {[%emt 0:00:09]} Qc1+ {[%emt 0:00:34]} 31. Qd1 {[%emt 0:00:13]} Qxb2 {[%emt 0:00:23]} 32. Rd8 {[%emt 0:02:19]} g6 {[%emt 0:02:52]} 33. Rxf8+ {[%emt 0:00:49]} Kxf8 {[%emt 0:00:02]} 34. Qd8+ {[%emt 0:01:23]} Kg7 {[%emt 0:00:04]} 1/2-1/2

[Event "53rd Mar Del Plata Open 2024"]
[Site "Mar Del Plata"]
[Date "2024.03.28"]
[Round "6.10"]
[White "Moreno Perez, Tobias Sebastian"]
[Black "Tristan, Leonardo"]
[Result "0-1"]
[ECO "A09"]
[WhiteElo "2246"]
[BlackElo "2521"]
[Annotator "TA"]
[PlyCount "100"]
[EventDate "2024.03.23"]
[EventType "swiss"]
[EventCountry "ARG"]
[SourceTitle "playchess.com"]
[Source "ChessBase"]
[SourceQuality "1"]
[TimeControl "5400+30"]

{[%evp 9,100,4,13,14,20,-5,-1,-29,-27,-33,4,3,27,-4,16,0,0,0,0,0,0,-50,-47,-68,-68,-68,-80,-107,-99,-125,-124,-135,-51,-41,21,19,21,29,14,23,15,16,22,26,82,14,107,8,73,0,33,41,30,28,39,-18,-20,-20,-13,-13,-14,-21,-16,-25,0,0,0,0,0,-8,-5,-2,0,0,0,0,0,0,0,-250,-255,-363,-334,-388,-354,-280,-370,-416,-366,-789,-775,-6179,-6127]} 1. Nf3 {[%emt 0:00:08]} d5 {[%emt 0:00:02]} 2. c4 {[%emt 0:00:15]} d4 {[%emt 0:04:04]} 3. b4 {[%emt 0:00:48]} Bg4 {[%emt 0:01:51]} 4. d3 {[%emt 0:07:01]} Bxf3 {[%emt 0:09:26]} 5. exf3 {[%emt 0:01:00]} e6 {[%emt 0:07:56]} 6. a3 {[%emt 0:04:29]} a5 {[%emt 0:16:41]} 7. bxa5 {[%emt 0:08:20]} Rxa5 {[%emt 0:03:31]} 8. Be2 {[%emt 0:07:52] The position is equal.} Bb4+ {[%emt 0:15:57]} 9. Nd2 {[%emt 0:03:48][%cal Bb1d2,Bd2b3,Bb3c5][%mdl 32] White is weak on the dark squares} Nc6 {[%emt 0:06:10]} 10. O-O {[%emt 0:05:02] Black should prevent Nb3.} Bd6 {[%emt 0:00:48][%cal Od6h2] ( -> ...Bxh2+!)} 11. h3 {[%emt 0:14:55]} Qa8 {[%emt 0:05:50][%cal Rd6a3]} 12. Nb3 {[%emt 0:07:29]} Ra6 {[%emt 0:00:37][%cal Rd6a3]} 13. f4 {[%emt 0:07:42]} Bxa3 {[%emt 0:01:46]} 14. Bf3 {[%emt 0:04:41] And now Bxa3 would win.} Nge7 {[%emt 0:00:36]} 15. Rb1 {[%emt 0:10:13]} (15. Bxc6+ $11 Nxc6 16. f5) 15... O-O $15 {[%emt 0:06:05]} 16. Bxa3 {[%emt 0:01:25]} Rxa3 {[%emt 0:00:06]} 17. Nc5 {[%emt 0:00:26]} Qa7 {[%emt 0:02:36]} 18. Rb5 {[%emt 0:01:25]} b6 {[%emt 0:01:32]} 19. Nb3 {[%emt 0:01:48]} Qa4 {[%emt 0:01:15]} 20. Qd2 {[%emt 0:07:19]} Rxb3 {[%emt 0:04:19]} ({Black should play} 20... Ra2 $17 21. Qe1 Qa3) 21. Bd1 $1 {[%emt 0:00:09] [#]} Na5 {[%emt 0:00:02]} 22. Bxb3 $11 {[%emt 0:00:31]} Nxb3 {[%emt 0:00:05]} 23. Qb2 {[%emt 0:00:17]} Nc5 {[%emt 0:04:19]} 24. Ra1 {[%emt 0:00:08]} Nxd3 $1 {[%emt 0:00:00]} 25. Rxa4 {[%emt 0:00:07]} Nxb2 {[%emt 0:00:01]} 26. Rxb2 {[%emt 0:00:07][%mdl 4096] Endgame. KRR-KRN} Nc6 {[%emt 0:07:55]} (26... g6 $11) 27. Rba2 {[%emt 0:06:35]} (27. Ra6 $16) 27... d3 {[%emt 0:00:30]} (27... h6 $11) 28. Ra8 {[%emt 0:00:30]} (28. R2a3 $16) 28... Nb4 {[%emt 0:00:30]} (28... e5 $11) 29. Rxf8+ {[%emt 0:00:00]} Kxf8 $16 {[%emt 0:00:00] KR-KN} 30. Rb2 {[%emt 0:00:00]} Nc2 {[%emt 0:00:00]} 31. Kf1 {[%emt 0:00:00]} Na3 {[%emt 0:00:04]} 32. Rd2 {[%emt 0:00:32]} (32. c5 $14) 32... Nxc4 $11 {[%emt 0:00:03]} 33. Rxd3 {[%emt 0:00:02]} Ke7 {[%emt 0:00:20] Dodges Rd7+} 34. Ke2 {[%emt 0:00:23]} b5 {[%emt 0:00:51]} 35. Rb3 {[%emt 0:00:45]} c6 {[%emt 0:00:18]} 36. Rb1 {[%emt 0:00:10]} Kd6 {[%emt 0:00:27]} 37. Ra1 {[%emt 0:00:11] Hoping for Ra7.} Kd5 {[%emt 0:01:08]} 38. Rd1+ {[%emt 0:00:35]} Kc5 {[%emt 0:00:06]} 39. Rd7 {[%emt 0:00:07]} Nd6 {[%emt 0:00:04]} 40. Kd3 {[%emt 0:00:11]} h5 {[%emt 0:00:10]} 41. g3 {[%emt 0:00:47]} Kd5 {[%emt 0:00:10]} 42. Kc3 {[%emt 0:01:29]} c5 {[%emt 0:03:19]} 43. f3 {[%emt 0:02:18]} Kc6 {[%emt 0:00:30]} 44. Ra7 $2 {[%emt 0:00:30]} (44. Rd8 $11 {and White is okay.}) 44... b4+ $19 {[%emt 0:00:30]} 45. Kb3 {[%emt 0:00:00]} (45. Kb2 $142) 45... Kb5 {[%emt 0:00:00]} 46. Rd7 {[%emt 0:00:08]} c4+ {[%emt 0:00:00]} 47. Kb2 {[%emt 0:01:22]} Kc6 {[%emt 0:01:30]} 48. Ra7 {[%emt 0:00:30]} Nb5 {[%emt 0:00:30]} 49. Rxf7 {[%emt 0:00:00]} (49. Ra8 b3 50. Rc8+ Kd5 51. g4) 49... c3+ 50. Kc1 {[%emt 0:01:00]} b3 {[%emt 0:00:00] Weighted Error Value: White=0.52/Black=0.17 (very precise) .  Loses game:     	White=1     	---        Mistake:       	White=6     	Black=5      Inaccurate:     	White=5     	Black=2      OK:         	White=13    	Black=16     Best:        	White=4     	Black=6      Strong:       	White=1     	Black=1} 0-1

[Event "53rd Mar Del Plata Open 2024"]
[Site "Mar Del Plata"]
[Date "2024.03.28"]
[Round "7.1"]
[White "Felgaer, Ruben"]
[Black "Christiansen, Johan-Sebastian"]
[Result "1/2-1/2"]
[ECO "C13"]
[WhiteElo "2565"]
[BlackElo "2633"]
[Annotator "TA"]
[PlyCount "45"]
[EventDate "2024.03.23"]
[EventType "swiss"]
[EventCountry "ARG"]
[SourceTitle "playchess.com"]
[Source "ChessBase"]
[SourceQuality "1"]
[TimeControl "5400+30"]

{[%evp 12,45,29,19,15,8,24,19,4,14,21,10,18,14,56,18,32,27,54,36,144,143,134,94,325,173,159,150,150,114,115,0,112,0,121,0]} 1. e4 {[%emt 0:00:07]} e6 {[%emt 0:07:49]} 2. d4 {[%emt 0:00:25]} d5 {[%emt 0:00:05]} 3. Nc3 {[%emt 0:01:20][%cal Bb1c3,Bc3e4,Be4g3][%mdl 32]} Nf6 {[%emt 0:01:09]} 4. Bg5 {[%emt 0:00:39]} dxe4 {[%emt 0:01:24]} 5. Nxe4 {[%emt 0:00:21]} Be7 {[%emt 0:00:26]} 6. Bxf6 {[%emt 0:01:09]} gxf6 {[%emt 0:00:04]} 7. Qd2 {[%emt 0:02:02]} Nd7 {[%emt 0:02:56]} 8. O-O-O {[%emt 0:05:07]} f5 {[%emt 0:00:47]} 9. Ng3 {[%emt 0:08:51]} Nf6 {[%emt 0:06:58] Gegen Nh5 gerichtet. Die Stellung ist ausgeglichen.} 10. Nf3 {[%emt 0:09:05]} h5 {[%emt 0:00:34]} 11. h4 {[%emt 0:06:50]} c6 {[%emt 0:02:06]} 12. Kb1 {[%emt 0:03:30]} Qc7 {[%emt 0:00:53]} 13. Ng5 {[%emt 0:07:09]} b5 {[%emt 0:06:47]} 14. Be2 {[%emt 0:09:02]} (14. c4 $5) 14... Bb7 {[%emt 0:04:40]} 15. Bf3 {[%emt 0:01:39]} Ng4 {[%emt 0:18:51]} ({Besser ist} 15... Rd8 $14) 16. Rhe1 $16 {[%emt 0:05:03][%cal Oe1e6] Rxe6! ist eine echte Drohung.} Qd6 {[%emt 0:07:20]} 17. Re2 {[%emt 0:09:04][%cal Og3f5] Droht stark Nxf5!} Kf8 $2 {[%emt 0:04:30] [#]} (17... Nxf2 $2 18. Nxf5 (18. Rxf2 Qxg3 19. Rh1 Bf6 $11) 18... exf5 19. Rde1 $18 (19. Rxf2 Rd8 $18)) (17... Rd8 $16 {war angesagt.}) 18. Rde1 {[%emt 0:03:23]} (18. d5 $142 $1 cxd5 (18... exd5 $2 19. Nxf5 Bxg5 20. hxg5 $18) 19. Rde1 Bxg5 20. hxg5) 18... Bxg5 $18 {[%emt 0:02:43]} 19. Qxg5 {[%emt 0:01:41] Zielt auf Bxg4 ab.} Qd8 {[%emt 0:01:58]} 20. Qf4 {[%emt 0:02:25] Weiß hat aktiveres Spiel.} (20. Nxh5 Qxg5 (20... Qxd4 $2 21. Rd2 $18) 21. hxg5 Rxh5 $19) 20... Qb8 {[%emt 0:01:18]} 21. Qg5 {[%emt 0:07:55][%cal Oe2e6] Schwarz muss nun Rxe6! beachten.} Qd8 {[%emt 0:01:56]} 22. Qf4 {[%emt 0:04:44]} (22. Nxh5 $2 {ist das falsche Schlagen.} Qxg5 (22... Qxd4 $2 {verliert.} 23. Rxe6 fxe6 24. Bxg4 $18) 23. hxg5 Rxh5 $19) 22... Qb8 $1 {[%emt 0:00:33]} 23. Qg5 {[%emt 0:02:25] Gewichteter Fehlerwert: Weiß=0.35/Schwarz=0.25 (präzise) .  Verlustzug:     	---       	Schwarz=1     Fehler:       	Weiß=2     	Schwarz=1     Ungenau:       	Weiß=1     	Schwarz=2     OK:         	Weiß=4     	Schwarz=4     Bester:       	Weiß=1     	Schwarz=3     Stark:        	---       	Schwarz=1} ({Günstiger ist} 23. Re5 $16) 1/2-1/2

[Event "53rd Mar Del Plata Open 2024"]
[Site "Mar Del Plata"]
[Date "2024.03.29"]
[Round "7.2"]
[White "Tristan, Leonardo"]
[Black "Villegas, Franco"]
[Result "1-0"]
[ECO "D36"]
[WhiteElo "2521"]
[BlackElo "2328"]
[Annotator "TA"]
[PlyCount "71"]
[EventDate "2024.03.23"]
[EventType "swiss"]
[EventCountry "ARG"]
[SourceTitle "playchess.com"]
[Source "ChessBase"]
[SourceQuality "1"]
[TimeControl "5400+30"]

{[%evp 25,71,-8,-11,-10,-11,-40,31,28,40,33,31,29,45,45,54,80,133,145,336,64,62,42,45,50,218,180,185,190,193,197,193,180,179,194,194,158,169,94,191,203,454,491,481,475,710,710,1319,1266]} 1. d4 {[%emt 0:02:46]} Nf6 {[%emt 0:00:17]} 2. c4 {[%emt 0:00:12]} e6 {[%emt 0:00:22]} 3. Nc3 {[%emt 0:00:08]} d5 {[%emt 0:00:58]} 4. cxd5 {[%emt 0:01:24]} exd5 {[%emt 0:00:06]} 5. Bg5 {[%emt 0:00:05]} c6 {[%emt 0:00:35]} 6. e3 {[%emt 0:00:24]} Be7 {[%emt 0:00:56]} 7. Bd3 {[%emt 0:00:23]} O-O {[%emt 0:00:53]} 8. Qc2 {[%emt 0:04:18]} Nbd7 {[%emt 0:00:42]} 9. Nf3 {[%emt 0:00:17]} Re8 {[%emt 0:00:47]} 10. O-O {[%emt 0:06:10]} Nf8 {[%emt 0:01:16]} 11. h3 {[%emt 0:03:36]} g6 {[%emt 0:07:20]} 12. Rab1 {[%emt 0:10:14]} Ne6 {[%emt 0:02:43]} 13. Bxf6 {[%emt 0:09:10]} Bxf6 {[%emt 0:00:06]} 14. b4 {[%emt 0:00:05]} a6 {[%emt 0:00:48]} 15. a4 {[%emt 0:05:47]} Ng7 {[%emt 0:14:19]} (15... a5 $15) 16. b5 $14 {[%emt 0:03:14] White is slightly better.} axb5 {[%emt 0:00:27]} 17. axb5 {[%emt 0:00:06]} Ra3 {[%emt 1:06:25]} 18. bxc6 {[%emt 0:09:17]} bxc6 {[%emt 0:00:30]} 19. Rb8 {[%emt 0:20:12]} Qa5 20. Nb5 {[%emt 0:22:42][%cal Bc3b5,Bb5d6,Bd6c8,Bc8e7][%mdl 32]} Rxd3 {[%emt 0:01:00] [#]} (20... cxb5 $142 21. Rxc8 b4 (21... Rxd3 $2 22. Rxe8+ Nxe8 23. Qxd3 $18)) 21. Nd6 $1 $16 {[%emt 0:00:00]} Rd8 {[%emt 0:00:00]} (21... Rf8 $16) 22. Rxc8 $2 ({White has to play} 22. Qxd3 $18 Ba6 23. Qb3 (23. Rxd8+ Bxd8 24. Qc2 Bxf1 $17) 23... Bxf1 24. Qb7 (24. Kxf1 Be7 $11) 24... Rxb8 25. Qxf7+ (25. Qxb8+ Qd8 $16) 25... Kh8 26. Qxf6) 22... Rxc8 {[%emt 0:01:00]} 23. Nxc8 {[%emt 0:01:30] A dynamic duo of knights.} Rc3 {[%emt 0:00:00]} 24. Qb2 {[%emt 0:00:00] Black must now prevent Nd6.} c5 $2 {[%emt 0:00:00]} (24... Nf5 $14) 25. Ra1 {[%emt 0:00:00]} Rb3 (25... Qb4 $2 26. Ra8 Kf8 27. Qa2 cxd4 28. Qxd5 (28. Nb6+ Ne8 $16) 28... Rc1+ 29. Kh2 $18) 26. Rxa5 {[%emt 0:01:30]} ({Not} 26. Qxb3 Qxa1+ 27. Kh2 Qa8 $15 (27... cxd4 $2 {loses.} 28. Qb8 $18)) 26... Rxb2 {[%emt 0:02:00]} 27. Ra8 {[%emt 0:00:30][%cal Rc8e7]} Ne6 {[%emt 0:00:00]} 28. Ne7+ {[%emt 0:00:00]} Kg7 {[%emt 0:00:00]} 29. Rg8+ {[%emt 0:00:00]} ({But not} 29. Nxd5 $6 cxd4 30. Nxf6 Kxf6 $14) 29... Kh6 {[%emt 0:01:30]} 30. Nxd5 {[%emt 0:00:00]} Bg7 {[%emt 0:00:00]} 31. dxc5 {[%emt 0:00:00]} ({White should play} 31. h4 $18 {Threatens to win with g4.} cxd4 32. g4) 31... Rb1+ {[%emt 0:00:00]} (31... Rc2 $16 {was called for.}) 32. Kh2 $18 {[%emt 0:00:00]} Rd1 $2 {[%emt 0:00:00]} (32... Rb5 33. e4 Rxc5) 33. Nf4 {[%emt 0:00:14] White is clearly winning.} Nxc5 {[%emt 0:00:00]} 34. g4 {[%emt 0:00:47][%csl Gf3][%cal Rg4g5]} f6 {[%emt 0:00:00]} (34... Bf6 $142 35. h4 Ne4 36. g5+ Nxg5 37. hxg5+ Bxg5 38. Nxg5 Kxg5) 35. h4 {[%emt 0:00:21] White threatens g5+ and mate.} g5 {[%emt 0:00:00] [#]} 36. Nd4 $1 {[%emt 0:01:25] Weighted Error Value: White=0.27 (precise) /Black=0.69.  Loses game:     	---       	Black=2      Missed win:     	White=1     	---        Mistake:       	White=1     	Black=5      Inaccurate:     	White=1     	Black=1      OK:         	White=7     	Black=5      Best:        	White=4     	Black=3      Strong:       	White=1     	---} 1-0